bitfinex/quotes_BTCUSD_20250522
["timestamp","ask_amount","ask_price","bid_price","bid_amount"]
[1747927017248,0.02906774,110830.0,110820.0,1.35012407]
[1747927017453,0.21854703,110830.0,110820.0,1.35012407]
[1747927017602,0.22756985,110830.0,110820.0,1.35012423]
[1747927017812,0.20952477,110830.0,110820.0,1.3230543]
[1747927018217,0.20952477,110830.0,110820.0,1.2965543]
[1747927018435,0.20150211,110830.0,110820.0,1.2965543]
[1747927018836,0.20150211,110830.0,110820.0,1.28753083]
[1747927019038,0.20150211,110830.0,110820.0,1.30557786]
[1747927019251,0.03006741,110830.0,110820.0,1.35202416]
[1747927019447,0.2195467,110830.0,110820.0,1.34300125]
[1747927019824,0.21152445,110830.0,110820.0,1.34300125]
[1747927020485,0.21152445,110830.0,110820.0,1.97900125]
[1747927020872,0.20250195,110830.0,110820.0,1.97900125]
[1747927021072,0.20250195,110830.0,110820.0,1.743058]
[1747927021286,0.19347929,110830.0,110820.0,1.93255447]
[1747927021701,0.19347929,110830.0,110820.0,1.94157803]
[1747927022057,0.18445655,110830.0,110820.0,1.743058]
[1747927022477,0.18445655,110830.0,110820.0,1.92353083]
[1747927022700,0.18445655,110830.0,110820.0,1.93255439]
[1747927023085,0.18445655,110830.0,110820.0,1.743058]
[1747927023265,0.18445655,110830.0,110820.0,1.92353083]
[1747927023486,0.18445655,110830.0,110820.0,1.93255439]
[1747927024060,0.18445655,110830.0,110820.0,2.27255439]
[1747927025560,0.004,110830.0,110820.0,2.31870077]
[1747927025802,0.02204458,110830.0,110820.0,2.33860077]
[1747927026013,0.02204475,110830.0,110820.0,2.33860077]
[1747927026217,0.03106741,110830.0,110820.0,2.31870077]
[1747927026428,0.02204475,110830.0,110820.0,2.31870077]
[1747927026631,0.03006741,110830.0,110820.0,2.31870077]
[1747927026810,0.02104475,110830.0,110820.0,2.3321114]
[1747927027041,0.002,110830.0,110820.0,2.44155696]
[1747927027241,0.01102217,110830.0,110820.0,2.3520114]
[1747927027447,0.0200445,110830.0,110820.0,2.3530114]
[1747927027653,0.029067,110830.0,110820.0,2.3530114]
[1747927027859,0.0200445,110830.0,110820.0,2.3530114]
[1747927028066,0.002,110830.0,110820.0,2.3540114]
[1747927028203,0.01102209,110830.0,110820.0,2.3540114]
[1747927028421,0.02004434,110830.0,110820.0,2.3540114]
[1747927029050,0.21854653,110830.0,110820.0,2.2835777]
[1747927029249,0.21854653,110830.0,110820.0,1.65660085]
[1747927029450,0.21854653,110830.0,110820.0,2.30158392]
[1747927029678,0.02906716,110830.0,110820.0,2.30158392]
[1747927029883,0.03808982,110830.0,110820.0,2.30158392]
[1747927030059,0.22756911,110830.0,110820.0,2.30158392]
[1747927030266,0.22870211,110830.0,110820.0,2.26545083]
[1747927030444,0.25530211,110830.0,110820.0,0.97792]
[1747927030848,0.25530211,110830.0,110820.0,0.342]
[1747927031196,0.25530211,110830.0,110820.0,0.97792]
[1747927033985,0.25530211,110830.0,110820.0,1.15839283]
[1747927034178,0.25530211,110830.0,110820.0,0.97792]
[1747927034380,0.25530211,110830.0,110820.0,0.98694364]
[1747927034989,0.22870211,110830.0,110820.0,1.18546342]
[1747927035194,0.002,110830.0,110820.0,2.3105678]
[1747927035444,0.01102217,110830.0,110820.0,2.3366678]
[1747927035644,0.02906717,110830.0,110820.0,2.3366678]
[1747927035885,0.02906717,110830.0,110820.0,2.7260678]
[1747927036023,0.02004459,110830.0,110820.0,2.7260678]
[1747927036216,0.01102217,110830.0,110820.0,2.3860678]
[1747927036466,0.02906708,110830.0,110820.0,2.3860678]
[1747927037210,0.3478673,110830.0,110820.0,1.02736]
[1747927037413,0.34504735,110830.0,110820.0,1.02736]
[1747927039662,0.34504735,110830.0,110820.0,0.75692]
[1747927039853,0.34504735,110830.0,110820.0,0.3914]
[1747927040163,0.34504735,110830.0,110820.0,1.02636]
[1747927041044,0.34604735,110830.0,110820.0,1.02536]
[1747927041367,0.34704735,110830.0,110820.0,1.02536]
[1747927042214,0.34704735,110830.0,110820.0,0.3894]
[1747927042429,0.34704735,110830.0,110820.0,1.02536]
[1747927043070,0.34704735,110830.0,110820.0,1.02496]
[1747927045625,0.02204524,110830.0,110820.0,1.23250277]
[1747927045823,0.02204475,110830.0,110820.0,1.23250277]
[1747927046138,0.03106741,110830.0,110820.0,2.36566077]
[1747927046720,0.03006741,110830.0,110820.0,2.36566077]
[1747927047136,0.02104475,110830.0,110820.0,2.36666077]
[1747927047546,0.03006741,110830.0,110820.0,2.36666077]
[1747927048197,0.02906741,110830.0,110820.0,2.36666077]
[1747927048421,0.02906741,110830.0,110820.0,2.36766077]
[1747927048817,0.20952396,110830.0,110820.0,2.3586377]
[1747927049019,0.2466467,110830.0,110820.0,1.90295639]
[1747927049336,0.23762445,110830.0,110820.0,1.38565647]
[1747927049982,0.23762445,110830.0,110820.0,1.39468003]
[1747927050373,0.23762445,110830.0,110820.0,1.41272673]
[1747927050820,0.23762445,110830.0,110820.0,1.42174988]
[1747927051065,0.23762445,110830.0,110820.0,1.44804931]
[1747927051066,0.002,110830.0,110820.0,1.44804931]
[1747927051303,0.02004434,110830.0,110820.0,1.44804931]
[1747927051773,0.04711208,110830.0,110820.0,1.76174931]
[1747927052013,0.07361208,110830.0,110820.0,1.76174931]
[1747927052257,0.02906684,110830.0,110820.0,1.76174931]
[1747927053579,0.03808942,110830.0,110820.0,1.76174931]
[1747927054265,0.02906684,110830.0,110820.0,1.76174931]
[1747927054489,0.03808942,110830.0,110820.0,1.76174931]
[1747927055499,0.03808942,110830.0,110820.0,1.49130931]
[1747927055718,0.07361208,110830.0,110820.0,1.76174931]
[1747927055983,0.03808942,110830.0,110820.0,1.76174931]
[1747927056526,0.04711208,110830.0,110820.0,1.76174931]
[1747927056745,0.02906684,110830.0,110820.0,1.76174931]
[1747927056966,0.0380895,110830.0,110820.0,1.76174931]
[1747927057206,0.002,110830.0,110820.0,1.78944931]
[1747927057423,0.002,110830.0,110820.0,1.80904931]
[1747927057642,0.002,110830.0,110820.0,1.82280075]
[1747927058097,0.04754458,110830.0,110820.0,0.70971986]
[1747927058332,0.34424719,110830.0,110820.0,0.36712]
[1747927058622,0.77145884,110830.0,110820.0,0.36712]
[1747927058821,0.23677283,110820.0,110800.0,0.63561075]
[1747927059026,0.33817945,110810.0,110800.0,0.36517075]
[1747927059228,0.33535897,110810.0,110800.0,0.36517075]
[1747927059896,0.33535897,110810.0,110800.0,0.37360594]
[1747927060727,0.33535897,110810.0,110800.0,0.36517075]
[1747927060978,0.33535897,110810.0,110800.0,5.075e-05]
[1747927061243,0.33535897,110810.0,110800.0,0.63569075]
[1747927061704,0.33735897,110810.0,110800.0,0.63569075]
[1747927062654,0.34035897,110810.0,110800.0,0.63569075]
[1747927063384,0.34035897,110810.0,110800.0,0.36521075]
[1747927063603,0.34035897,110810.0,110800.0,0.63569075]
[1747927064018,0.34035897,110810.0,110800.0,0.3736304]
[1747927064215,0.34035897,110810.0,110800.0,0.6441104]
[1747927065183,0.34035897,110810.0,110800.0,0.63569075]
[1747927065783,0.005,110810.0,110800.0,2.10079887]
[1747927065986,0.005,110810.0,110800.0,2.33952898]
[1747927066231,0.003,110810.0,110800.0,2.44361539]
[1747927066442,0.003,110810.0,110800.0,2.47067739]
[1747927066599,0.004,110810.0,110800.0,2.82067739]
[1747927067022,0.004,110810.0,110800.0,2.79911739]
[1747927067776,0.001,110810.0,110800.0,2.79911739]
[1747927067912,0.002,110810.0,110800.0,2.79911739]
[1747927068109,0.001,110810.0,110800.0,2.03175098]
[1747927068324,0.20756174,110810.0,110800.0,1.33588134]
[1747927068537,0.23556174,110810.0,110800.0,1.29746134]
[1747927068744,0.04604817,110810.0,110800.0,1.3185113]
[1747927068946,0.00902372,110810.0,110800.0,1.327536]
[1747927069143,0.22652107,110820.0,110810.0,0.53853778]
[1747927069348,0.14461525,110820.0,110810.0,0.55658595]
[1747927069779,0.21125693,110830.0,110820.0,0.54754277]
[1747927069780,0.002,110830.0,110820.0,0.54754277]
[1747927070036,0.029067,110830.0,110820.0,1.92508077]
[1747927070219,0.029067,110830.0,110820.0,1.29322277]
[1747927070424,0.02906692,110830.0,110820.0,1.29322277]
[1747927070831,0.02906692,110830.0,110820.0,1.10922277]
[1747927073474,0.03808958,110830.0,110820.0,1.03582277]
[1747927073618,0.06508958,110830.0,110820.0,1.01782277]
[1747927073823,0.05606692,110830.0,110820.0,1.01782277]
[1747927074230,0.06508958,110830.0,110820.0,0.97622277]
[1747927076482,0.24554613,110830.0,110820.0,0.4982]
[1747927076679,0.25610171,110830.0,110820.0,0.79091283]
[1747927076907,0.25610171,110830.0,110820.0,0.79993639]
[1747927077227,0.25610171,110830.0,110820.0,0.97524]
[1747927077429,0.34564727,110830.0,110820.0,0.97524]
[1747927077885,0.34564727,110830.0,110820.0,0.98426364]
[1747927078551,0.34564727,110830.0,110820.0,1.17375994]
[1747927078740,0.31704727,110830.0,110820.0,1.18278325]
[1747927078945,0.31704727,110830.0,110820.0,1.17375994]
[1747927079453,0.31704727,110830.0,110820.0,1.56319994]
[1747927079684,0.002,110830.0,110820.0,2.68830432]
[1747927079899,0.02004459,110830.0,110820.0,2.68830432]
[1747927080116,0.02906717,110830.0,110820.0,2.68830432]
[1747927080322,0.02004459,110830.0,110820.0,2.68830432]
[1747927080731,0.03808975,110830.0,110820.0,2.68830432]
[1747927080912,0.03808967,110830.0,110820.0,2.68830432]
[1747927081121,0.002,110830.0,110820.0,2.68830432]
[1747927081322,0.002,110830.0,110820.0,2.73500432]
[1747927081542,0.002,110830.0,110820.0,2.82454988]
[1747927081947,0.002,110830.0,110820.0,2.80454988]
[1747927082384,0.002,110830.0,110820.0,2.80554988]
[1747927082593,0.2095238,110830.0,110820.0,2.04504125]
[1747927082795,0.02004459,110830.0,110820.0,2.68926432]
[1747927083008,0.01102217,110830.0,110820.0,2.68926432]
[1747927083222,0.002,110830.0,110820.0,2.70358518]
[1747927083452,0.01102217,110830.0,110820.0,2.70358518]
[1747927083633,0.02004442,110830.0,110820.0,2.70358518]
[1747927084760,0.01102217,110830.0,110820.0,2.70358518]
[1747927085606,0.01102217,110830.0,110820.0,2.36358518]
[1747927085815,0.19147872,110830.0,110820.0,1.68799447]
[1747927086073,0.23682404,110830.0,110820.0,2.29896003]
[1747927086282,0.41640068,110830.0,110820.0,0.6372]
[1747927086501,0.34424735,110830.0,110820.0,0.6372]
[1747927086705,0.33522485,110830.0,110820.0,0.6372]
[1747927086834,0.33522485,110830.0,110820.0,0.002]
[1747927087043,0.34424735,110830.0,110820.0,0.82669647]
[1747927087458,0.06522225,110830.0,110820.0,1.95180125]
[1747927087685,0.20952388,110830.0,110820.0,1.95180125]
[1747927087908,0.03832225,110830.0,110820.0,1.95080125]
[1747927088142,0.002,110830.0,110820.0,1.95982432]
[1747927088605,0.002,110830.0,110820.0,2.00682432]
[1747927088787,0.002,110830.0,110820.0,1.98682432]
[1747927089027,0.002,110830.0,110820.0,2.07636988]
[1747927089207,0.002,110830.0,110820.0,2.42636988]
[1747927089631,0.002,110830.0,110820.0,2.44636988]
[1747927090034,0.002,110830.0,110820.0,2.42536988]
[1747927090265,0.002,110830.0,110820.0,2.78536988]
[1747927090450,0.002,110830.0,110820.0,2.79889033]
[1747927090593,0.002,110830.0,110820.0,2.84048918]
[1747927091422,0.002,110830.0,110820.0,2.84148918]
[1747927092061,0.002,110830.0,110820.0,2.84248918]
[1747927093693,0.002,110830.0,110820.0,2.82248918]
[1747927094080,0.002,110830.0,110820.0,2.17274833]
[1747927094278,0.01102209,110830.0,110820.0,2.78086833]
[1747927094476,0.02004426,110830.0,110820.0,2.78086833]
[1747927094684,0.21854638,110830.0,110820.0,1.6971797]
[1747927094886,0.02004459,110830.0,110820.0,2.34132277]
[1747927095088,0.02906717,110830.0,110820.0,2.34132277]
[1747927095492,0.05576717,110830.0,110820.0,2.34132277]
[1747927095645,0.05576709,110830.0,110820.0,2.34132277]
[1747927096001,0.25672152,110830.0,110820.0,1.65658883]
[1747927096206,0.25390179,110830.0,110820.0,1.432678]
[1747927096419,0.25390179,110830.0,110820.0,1.67602]
[1747927096661,0.25390179,110830.0,110820.0,1.12952]
[1747927096864,0.25390179,110830.0,110820.0,0.99272]
[1747927097074,0.05576741,110830.0,110820.0,1.54026277]
[1747927097353,0.23622387,110830.0,110820.0,1.54026293]
[1747927097564,0.24524645,110830.0,110820.0,1.54928608]
[1747927097760,0.24524645,110830.0,110820.0,1.54026293]
[1747927097991,0.24524645,110830.0,110820.0,0.90514293]
[1747927098208,0.05576708,110830.0,110820.0,1.54026293]
[1747927098393,0.002,110830.0,110820.0,1.549286]
[1747927098816,0.02004442,110830.0,110820.0,1.549286]
[1747927099045,0.03808942,110830.0,110820.0,1.549286]
[1747927099186,0.03808942,110830.0,110820.0,1.25181639]
[1747927099187,0.23772421,110830.0,110820.0,1.25181639]
[1747927099389,0.23772421,110830.0,110820.0,1.54026293]
[1747927099591,0.23772421,110830.0,110820.0,1.549286]
[1747927099806,0.05726766,110830.0,110820.0,1.549286]
[1747927099989,0.07531322,110830.0,110820.0,1.549286]
[1747927100508,0.25576977,110830.0,110820.0,1.54026293]
[1747927100713,0.25576977,110830.0,110820.0,1.54928608]
[1747927100913,0.25670211,110830.0,110820.0,1.51323283]
[1747927101128,0.25670211,110830.0,110820.0,1.52225639]
[1747927101335,0.0582,110830.0,110820.0,0.88709639]
[1747927101540,0.20050114,110830.0,110820.0,1.54463476]
[1747927101743,0.06608983,110830.0,110820.0,1.56268106]
[1747927101949,0.04804459,110830.0,110820.0,1.56268106]
[1747927102154,0.05706709,110830.0,110820.0,1.56268106]
[1747927102360,0.07511249,110830.0,110820.0,1.56268106]
[1747927102737,0.06608975,110830.0,110820.0,1.56268106]
[1747927103508,0.25556912,110830.0,110820.0,1.54030293]
[1747927103712,0.09218975,110830.0,110820.0,1.55834915]
[1747927103915,0.10121249,110830.0,110820.0,1.55834915]
[1747927106506,0.10121249,110830.0,110820.0,0.92318915]
[1747927106747,0.28166969,110830.0,110820.0,1.54912608]
[1747927106960,0.34414767,110830.0,110820.0,0.002]
[1747927107138,0.34414767,110830.0,110820.0,0.63696]
[1747927107263,0.34414767,110830.0,110820.0,0.97696]
[1747927108093,0.34414767,110830.0,110820.0,2.26449083]
[1747927108094,0.0561,110830.0,110820.0,2.26449083]
[1747927108319,0.25460163,110830.0,110820.0,2.084018]
[1747927108494,0.25460163,110830.0,110820.0,2.27351439]
[1747927108703,0.25460163,110830.0,110820.0,2.27351447]
[1747927108907,0.24557921,110830.0,110820.0,2.27351447]
[1747927109318,0.23655655,110830.0,110820.0,2.27351447]
[1747927109550,0.23655655,110830.0,110820.0,2.28253794]
[1747927109709,0.23655655,110830.0,110820.0,2.27351447]
[1747927109907,0.57655655,110830.0,110820.0,1.14306847]
[1747927110303,0.57655655,110830.0,110820.0,1.15209203]
[1747927111192,0.57655655,110830.0,110820.0,1.224012]
[1747927111785,0.57655655,110830.0,110820.0,1.41350847]
[1747927112353,0.002,110830.0,110820.0,1.44057841]
[1747927112548,0.02906725,110830.0,110820.0,1.44057841]
[1747927112751,0.03808999,110830.0,110820.0,1.44057841]
[1747927112951,0.24474654,110830.0,110820.0,1.43155534]
[1747927113172,0.24474654,110830.0,110820.0,1.44057857]
[1747927113380,0.24474654,110830.0,110820.0,1.44960172]
[1747927113538,0.06428999,110830.0,110820.0,1.44970172]
[1747927113732,0.002,110830.0,110820.0,1.44970115]
[1747927114688,0.02004434,110830.0,110820.0,1.44970115]
[1747927114891,0.002,110830.0,110820.0,1.44970115]
[1747927115235,0.002,110830.0,110820.0,1.81720115]
[1747927115465,0.002,110830.0,110820.0,1.83850115]
[1747927115639,0.002,110830.0,110820.0,1.86556015]
[1747927115895,0.002,110830.0,110820.0,1.95510571]
[1747927116658,0.002,110830.0,110820.0,1.96964656]
[1747927117181,0.002,110830.0,110820.0,1.98325798]
[1747927117605,0.002,110830.0,110820.0,2.33325798]
[1747927118483,0.002,110830.0,110820.0,1.66237713]
[1747927118790,0.002,110830.0,110820.0,2.31187798]
[1747927118973,0.002,110830.0,110820.0,2.33317798]
[1747927119827,0.002,110830.0,110820.0,2.31187798]
[1747927123115,0.002,110830.0,110820.0,1.99943713]
[1747927123339,0.0299,110830.0,110820.0,2.18029157]
[1747927123505,0.0299,110830.0,110820.0,1.83029157]
[1747927124133,0.002,110830.0,110820.0,1.83029157]
[1747927125183,0.002,110830.0,110820.0,1.91983713]
[1747927125394,0.002,110830.0,110820.0,1.94703713]
[1747927125597,0.002,110830.0,110820.0,2.35093798]
[1747927125836,0.002,110830.0,110820.0,2.37223798]
[1747927126347,0.002,110830.0,110820.0,2.34517898]
[1747927127597,0.002,110830.0,110820.0,2.69517898]
[1747927128050,0.00067086,110850.0,110840.0,0.56204617]
[1747927128259,0.0263,110880.0,110870.0,0.36705773]
[1747927128467,0.0263,110880.0,110870.0,2.16070117]
[1747927128674,0.0263,110880.0,110870.0,2.51070117]
[1747927128878,0.04433661,110880.0,110870.0,2.51070117]
[1747927129084,0.03531818,110880.0,110870.0,2.52684233]
[1747927129295,0.04438727,110880.0,110870.0,2.52684233]
[1747927129421,0.03536892,110880.0,110870.0,2.52684233]
[1747927129627,0.0534057,110880.0,110870.0,2.52684233]
[1747927130220,0.03536892,110880.0,110870.0,2.52684233]
[1747927130429,0.08060586,110880.0,110870.0,2.52684233]
[1747927130643,0.08060586,110880.0,110870.0,2.52784233]
[1747927131686,0.26098161,110880.0,110870.0,2.5007046]
[1747927131905,0.26098161,110880.0,110870.0,2.51874332]
[1747927132256,0.26098161,110880.0,110870.0,2.52776248]
[1747927132437,0.26098161,110880.0,110870.0,2.53678156]
[1747927132644,0.07158768,110880.0,110870.0,2.54580056]
[1747927132843,0.08060635,110880.0,110870.0,2.54580056]
[1747927133051,0.26098153,110880.0,110870.0,2.53678156]
[1747927133536,0.08060635,110880.0,110870.0,2.53678156]
[1747927133729,0.07158768,110880.0,110870.0,2.54580056]
[1747927133951,0.03536876,110880.0,110870.0,2.54580056]
[1747927134162,0.02635074,110880.0,110870.0,2.54580056]
[1747927134363,0.03536884,110880.0,110870.0,2.54580056]
[1747927134568,0.02635074,110880.0,110870.0,2.54580056]
[1747927134768,5.074e-05,110880.0,110870.0,2.54580056]
[1747927137574,5.074e-05,110880.0,110870.0,2.20580056]
[1747927140199,5.074e-05,110880.0,110870.0,2.1896594]
[1747927140622,5.074e-05,110880.0,110870.0,2.61920496]
[1747927140838,5.074e-05,110880.0,110870.0,2.64630496]
[1747927141867,5.074e-05,110880.0,110870.0,2.61920496]
[1747927143256,5.074e-05,110880.0,110870.0,2.61912496]
[1747927143872,5.074e-05,110880.0,110870.0,2.63366581]
[1747927144282,0.02935074,110880.0,110870.0,2.63366581]
[1747927144905,0.03836884,110880.0,110870.0,2.63366581]
[1747927145135,0.05640578,110880.0,110870.0,1.8948194]
[1747927145333,0.07548711,110880.0,110870.0,2.5293394]
[1747927145554,0.07548711,110880.0,110870.0,1.8948194]
[1747927145787,0.08450546,110880.0,110870.0,2.5293394]
[1747927146317,0.09352397,110880.0,110870.0,2.5293394]
[1747927146470,0.08450546,110880.0,110870.0,2.5293394]
[1747927146857,0.09352389,110880.0,110870.0,2.5293394]
[1747927147472,0.08450546,110880.0,110870.0,2.5293394]
[1747927148142,0.06646884,110880.0,110870.0,2.5293394]
[1747927148348,0.06646876,110880.0,110870.0,2.5293394]
[1747927148519,0.06646884,110880.0,110870.0,2.5293394]
[1747927148727,0.05745074,110880.0,110870.0,2.5293394]
[1747927149070,5.074e-05,110880.0,110870.0,2.5293394]
[1747927149239,5.074e-05,110880.0,110870.0,2.63342581]
[1747927150213,0.002,110890.0,110880.0,0.56197131]
[1747927150595,0.002,110890.0,110880.0,1.29308887]
[1747927150997,0.002,110890.0,110880.0,1.64308887]
[1747927151411,0.003,110890.0,110880.0,1.64308887]
[1747927151624,0.003,110890.0,110880.0,2.05128887]
[1747927152035,0.002,110890.0,110880.0,2.05128887]
[1747927153860,0.002,110910.0,110900.0,0.56193391]
[1747927154085,0.0316,110910.0,110900.0,1.78538591]
[1747927154272,0.002,110910.0,110900.0,1.87493147]
[1747927154508,0.002,110910.0,110900.0,2.22493147]
[1747927155157,0.0316,110910.0,110900.0,2.22493147]
[1747927155336,0.0346,110910.0,110900.0,2.22493147]
[1747927155541,0.0366,110910.0,110900.0,2.22493147]
[1747927155768,0.007,110910.0,110900.0,2.22493147]
[1747927156973,0.004,110910.0,110900.0,2.22493147]
[1747927157177,0.005,110910.0,110900.0,2.22493147]
[1747927157422,0.0312,110930.0,110920.0,0.20735566]
[1747927157637,0.00250785,110930.0,110920.0,2.26393407]
[1747927157840,0.0312,110950.0,110940.0,0.56185913]
[1747927158039,0.00215226,110950.0,110940.0,2.22477669]
[1747927159546,0.00315226,110950.0,110940.0,2.22477669]
[1747927161182,0.02985226,110950.0,110940.0,2.22465669]
[1747927161385,0.02885226,110950.0,110940.0,2.22465669]
[1747927161593,0.00215226,110950.0,110940.0,2.22465669]
[1747927161826,0.00215226,110950.0,110940.0,1.59137669]
[1747927162000,0.00215226,110950.0,110940.0,2.22665669]
[1747927162967,0.06951071,110970.0,110960.0,0.20728091]
[1747927163171,0.0309,110990.0,110980.0,0.22178441]
[1747927163371,0.03105214,110990.0,110980.0,2.26350197]
[1747927163572,0.00215214,110990.0,110980.0,2.61350197]
[1747927164602,0.030499,111000.0,110990.0,0.54722488]
[1747927164814,0.030499,111000.0,110990.0,1.22574244]
[1747927165005,0.030499,111000.0,110990.0,1.2390512]
[1747927165175,0.030499,111000.0,110990.0,1.60359205]
[1747927165383,0.002,111010.0,111000.0,0.54720622]
[1747927165697,0.002,111010.0,111000.0,1.85988378]
[1747927165951,0.0295,111010.0,111000.0,1.85988378]
[1747927166167,0.002,111010.0,111000.0,2.22442463]
[1747927166279,0.0292,111010.0,111000.0,2.22442463]
[1747927167452,0.02001274,111030.0,111020.0,0.56170974]
[1747927167453,0.002,111030.0,111020.0,0.56170974]
[1747927167637,0.00215211,111030.0,111020.0,1.5103473]
[1747927168100,0.00215211,111030.0,111020.0,2.2241073]
[1747927168233,0.0288,111050.0,111040.0,0.56167242]
[1747927168442,0.00250694,111050.0,111040.0,1.89918998]
[1747927168881,0.02930694,111050.0,111040.0,1.89918998]
[1747927169283,0.00250694,111050.0,111040.0,1.89918998]
[1747927169484,0.00250694,111050.0,111040.0,2.26282998]
[1747927169886,0.00250694,111050.0,111040.0,2.26382998]
[1747927170289,0.00250694,111050.0,111040.0,2.26582998]
[1747927170493,0.00250694,111050.0,111040.0,1.63206998]
[1747927170670,0.03070694,111050.0,111040.0,1.63206998]
[1747927170899,0.06761124,111050.0,111040.0,1.54252442]
[1747927171116,0.08562024,111050.0,111040.0,2.17616442]
[1747927171273,0.07661578,111050.0,111040.0,2.17616442]
[1747927171476,0.06761124,111050.0,111040.0,2.17616442]
[1747927171723,0.05860694,111050.0,111040.0,2.17616442]
[1747927171923,0.05860694,111050.0,111040.0,2.17612442]
[1747927172099,0.26571962,111050.0,111040.0,2.14057295]
[1747927172306,0.26571962,111050.0,111040.0,2.1731245]
[1747927172551,0.26571962,111050.0,111040.0,1.80957847]
[1747927172752,0.26571962,111050.0,111040.0,1.8185839]
[1747927173088,0.27472449,111050.0,111040.0,2.1585839]
[1747927173290,0.08562114,111050.0,111040.0,2.14957847]
[1747927173494,0.27472514,111050.0,111040.0,2.49957855]
[1747927173684,0.27472514,111050.0,111040.0,1.87498398]
[1747927173913,0.27472514,111050.0,111040.0,2.50858398]
[1747927174119,0.27472514,111050.0,111040.0,2.51758933]
[1747927174323,0.25671581,111050.0,111040.0,2.301412]
[1747927174531,0.24771094,111050.0,111040.0,1.667852]
[1747927174705,0.24771094,111050.0,111040.0,2.301372]
[1747927174979,0.24771094,111050.0,111040.0,1.951372]
[1747927175194,0.24771094,111050.0,111040.0,2.14049303]
[1747927175452,0.24771094,111050.0,111040.0,1.951372]
[1747927175959,0.24771094,111050.0,111040.0,2.14949871]
[1747927176265,0.24771094,111050.0,111040.0,2.15850423]
[1747927176441,0.24771094,111050.0,111040.0,2.14049303]
[1747927176652,0.24771094,111050.0,111040.0,1.96037776]
[1747927176853,0.24771094,111050.0,111040.0,2.14949871]
[1747927177054,0.24771094,111050.0,111040.0,2.17466501]
[1747927177260,0.24771094,111050.0,111040.0,1.5670607]
[1747927177469,0.3372565,111050.0,111040.0,0.5935407]
[1747927177684,0.69231482,111050.0,111040.0,0.49436]
[1747927177889,0.00900762,111010.0,111000.0,0.59788622]
[1747927178117,0.00900714,111020.0,111010.0,0.54718779]
[1747927178324,0.2474379,111030.0,111020.0,0.5291551]
[1747927178528,0.1891551,111020.0,111010.0,0.19818]
[1747927178737,0.22706199,111020.0,111010.0,0.715792]
[1747927178978,0.25606224,111020.0,111010.0,0.90496405]
[1747927179215,0.3456078,111020.0,111010.0,0.44602411]
[1747927179421,0.3456078,111020.0,111010.0,1.41950411]
[1747927179812,0.3456078,111020.0,111010.0,1.61768403]
[1747927180037,0.15645245,111020.0,111010.0,1.62669198]
[1747927180233,0.02702125,111020.0,111010.0,1.63569969]
[1747927180467,0.04503528,111020.0,111010.0,1.62669198]
[1747927180878,0.21617635,111020.0,111010.0,1.62669214]
[1747927181058,0.20716946,111020.0,111010.0,1.62669214]
[1747927181215,0.20716946,111020.0,111010.0,1.00221993]
[1747927181421,0.20716946,111020.0,111010.0,1.63573993]
[1747927181799,0.01801387,111020.0,111010.0,1.64474755]
[1747927181995,0.0572,111040.0,111030.0,0.53814423]
[1747927182290,0.36288241,111040.0,111030.0,0.79909798]
[1747927182478,0.08421565,111040.0,111030.0,1.27198864]
[1747927182707,0.04890933,111050.0,111040.0,0.54713157]
[1747927182921,0.33656319,111050.0,111040.0,1.35656373]
[1747927183340,0.31855435,111050.0,111040.0,1.32954727]
[1747927183491,0.30954956,111050.0,111040.0,1.149432]
[1747927183705,0.30954956,111050.0,111040.0,0.809432]
[1747927183706,0.33684956,111050.0,111040.0,0.809432]
[1747927183874,0.33684956,111050.0,111040.0,1.00755863]
[1747927184076,0.247304,111050.0,111040.0,0.99855303]
[1747927184281,0.251304,111050.0,111040.0,0.99855303]
[1747927184623,0.251304,111050.0,111040.0,0.36356]
[1747927185776,0.33984956,111050.0,111040.0,0.36356]
[1747927185905,0.18011527,111040.0,111030.0,0.54715072]
[1747927186107,0.18912095,111040.0,111030.0,1.00202897]
[1747927186317,0.21792095,111040.0,111030.0,1.61753631]
[1747927187183,0.19812647,111040.0,111030.0,1.62654256]
[1747927187391,0.01801079,111040.0,111030.0,1.63554856]
[1747927187633,0.02801647,111040.0,111030.0,1.66255964]
[1747927187844,0.01901079,111040.0,111030.0,1.67156564]
[1747927188055,0.02801582,111040.0,111030.0,1.67156564]
[1747927188276,0.001,111040.0,111030.0,1.67156564]
[1747927188932,0.003,111040.0,111030.0,1.67156564]
[1747927190487,0.003,111040.0,111030.0,1.68610649]
[1747927190694,0.03001549,111040.0,111030.0,1.03804564]
[1747927190921,0.02101014,111040.0,111030.0,1.67156564]
[1747927191144,0.03001541,111040.0,111030.0,1.67156564]
[1747927191641,0.02101014,111040.0,111030.0,1.67156564]
[1747927192422,0.02101022,111040.0,111030.0,1.67156564]
[1747927192649,0.02101022,111040.0,111030.0,1.67152564]
[1747927193086,0.02101014,111040.0,111030.0,1.67152564]
[1747927193482,0.02101014,111040.0,111030.0,1.03804564]
[1747927193721,0.02101014,111040.0,111030.0,1.67152564]
[1747927193945,0.003,111040.0,111030.0,1.67152564]
[1747927195790,0.01200503,111040.0,111030.0,1.67152564]
[1747927196181,0.02101022,111040.0,111030.0,1.67152564]
[1747927196386,0.03001549,111040.0,111030.0,1.67152564]
[1747927196581,0.01200503,111040.0,111030.0,1.40160564]
[1747927196960,0.01200503,111040.0,111030.0,1.67152564]
[1747927197165,0.03001549,111040.0,111030.0,1.67152564]
[1747927197374,0.01200503,111040.0,111030.0,1.67152564]
[1747927197592,0.003,111040.0,111030.0,1.67152564]
[1747927197812,0.003,111040.0,111030.0,1.74176649]
[1747927199302,0.003,111040.0,111030.0,1.68606649]
[1747927199938,0.003,111040.0,111030.0,1.74036649]
[1747927200168,0.003,111050.0,111040.0,0.61957242]
[1747927200382,7.408e-05,111050.0,111040.0,1.69868442]
[1747927200615,0.00206,111070.0,111060.0,0.22163512]
[1747927200835,0.00206,111070.0,111060.0,2.02942712]
[1747927201268,0.00206,111070.0,111060.0,2.17427268]
[1747927201745,0.00206,111070.0,111060.0,2.55127068]
[1747927201951,0.00256694,111070.0,111060.0,2.55127068]
[1747927202798,0.00256694,111070.0,111060.0,2.56485127]
[1747927204333,0.00256694,111070.0,111060.0,2.56685127]
[1747927204803,0.00256694,111070.0,111060.0,2.24163127]
[1747927205020,0.00256694,111070.0,111060.0,1.78876571]
[1747927205240,0.02057254,111070.0,111060.0,1.77422486]
[1747927205450,0.04106962,111070.0,111060.0,2.39576427]
[1747927205657,0.24814565,111070.0,111060.0,2.0367607]
[1747927205865,0.26784297,111070.0,111060.0,2.0367607]
[1747927206019,0.26784297,111070.0,111060.0,2.04576427]
[1747927206224,0.26784297,111070.0,111060.0,1.41264443]
[1747927206429,0.24983689,111070.0,111060.0,1.56888083]
[1747927206634,0.19810846,111050.0,111040.0,0.18912079]